Workbook

Sheet Cover Sheet
A1: =Info!A1 -> Trapezoidal Riprap-Lined Waterway Design.xlsm
E3: =Info!H1 -> V1.02
E4: =Info!I1 -> 2013-02-11

Sheet Design
A1: =Info!A1 -> Trapezoidal Riprap-Lined Waterway Design.xlsm
A2: Landowner | B2: Sample Landowner | D2: County | E2: Washington | H2: =Info!H1 -> V1.02
A3: Computed By | B3: JLS | D3: Date | E3: 2012-10-02 | H3: =Info!I1 -> 2013-02-11 | S3: Formulas and data used in computations:
A4: Checked by | D4: Date
A5: Note: Macros must be enabled in this spreadsheet in order for the "Solve" button to work.
A6: Design flow, Q= | B6: 160 | C6: cfs | D6: =IF(B6>200,"Q>200 cfs!","") ->  | G6: WW horiz. Length= | H6: 100 | I6: ft | T6: Angular
A7: Slope, S= | B7: 0.1 | C7: ft/ft = | D7: =1/B7 -> 10 | E7: :1 | G7: U/S WW F.L. elev= | H7: 997 | I7: ft | T7: Rounded
A8: Bottom Width, W= | B8: 28 | C8: ft | G8: D/S WW F.L. elev= | H8: =H7-H9 -> 987 | I8: ft
A9: Side slope, Z= | B9: 2 | C9: :1 | G9: Waterway drop= | H9: =H6*B7 -> 10 | I9: ft
A10: Safety factor= | B10: 1.2 | G10: WW length along slope= | H10: =(H9^2+H6^2)^0.5 -> 100.4987562 | I10: ft
A11: Rock shape = | B11: Angular | T11: Basic D50= | U11: =IF(B7<0.1,(B6*B7^1.5/(0.00475*B8))^0.53,(B6*B7^0.58/(0.0393*B8))^0.53) -> 6.898613 | V11: in
A12: Min. req'd D50= | B12: =ROUND(IF(B11="Angular",U11*B10,U11*B10*1.4),2) -> 8.28 | C12: in | F12: Spreadsheet formatting key:
A13: D50 used= | B13: 8.3 | C13: in | D13: =IF(B13<B12,"Select larger D50!","") ->  | F13: XXX | G13: =Input cells | S13: For normal flow: | U13: =B8*B17+B9*B17^2 -> 20.50909408 | V13: A=Flow Area for normal flow
A14: n= | B14: =IF(B11="Angular",0.047*(B13*B7)^0.147,0.047*(B13/1.4*B7)^0.147) -> 0.04573011963 | F14: X.XX | G14: =Output from "Solve" button | U14: =B8+2*B17*(B9^2+1)^0.5 -> 31.12019814 | V14: WP=Wetted Perimeter
A15: Freeboard= | B15: 0.25 | C15: ft | F15: X.XX | G15: =Other computed output | U15: =U13/U14 -> 0.65902839 | V15: R= Hydraulic Radius
F16: Red text | G16: =Instructions, warnings, info | T16: Velocity, V = | U16: =1.49/B14*U15^0.667*B7^0.5 -> 7.801767099 | V16: Manning's eqn | X16: =U16/U17 -> 1.000044846 | Y16: (Goal Seek P16=1
A17: Flow depth, d= | B17: 0.6976975155 | C17: ft | D17: =IF($S$28=1,"Calculated","Please click Solve.") -> Calculated | T17: Velocity, V = | U17: =B6/U13 -> 7.801417233 | V17: Q/A | Y17: by varying B17)
A18: Critical depth, dc= | B18: 0.9808467177 | C18: ft
A19: Critical slope, Sc= | B19: =(B6*B14/(1.49*U19*U22^0.667))^2 -> 0.03178534277 | C19: ft/ft | D19: 0.7Sc = | E19: =B19*0.7 -> 0.02224973994 | F19: ft/ft | S19: For critical flow: | U19: =B8*B18+B9*B18^2 -> 29.38782866 | V19: A=Flow Area for critical flow
D20: 1.3Sc = | E20: =B19*1.3 -> 0.04132094561 | F20: ft/ft | U20: =B8+2*B9*B18 -> 31.92338687 | V20: T=Top width of flow
A21: Design slope, S= | B21: =B7 -> 0.1 | C21: ft/ft | D21: =IF(B7<=E19,"Design slope OK. Flow is Subcritical.",IF(B7>=E20,"Design slope OK. Flow is Supercritical.","0.7Sc<S<1.3Sc. Select a different slope or bottom width.")) -> Design slope OK. Flow is Supercritical. | U21: =B8+2*B18*(1+B9^2)^0.5 -> 32.38647987 | V21: WP=Wetted Perimeter
A22: Velocity= | B22: =U17 -> 7.801417233 | C22: fps | G22: Est. riprap unit wt= | H22: 1.4 | I22: Tons/CY | U22: =U19/U21 -> 0.9074104002 | V22: R=Hydraulic Radius
D23: =CONCATENATE("Rock shape = ",B11) -> Rock shape = Angular | G23: Rock Gs = | H23: 2.65 | T23: Q2/g = | U23: =B6^2/32.2 -> 795.0310559 | X23: =U23/U24 -> 0.9999782573 | Y23: (Goal Seek P23=1
A24: Riprap thickness: | D24: Required riprap gradation for D50 selected | T24: A3/T = | U24: =U19^3/U20 -> 795.0483424 | Y24: by varying B18)
A25: Minimum= | B25: =ROUND(F27/12,2) -> 1.38 | C25: ft | D25: % | E25: Rock dia., inches | G25: Rock weight, lb
A26: Provided= | B26: 1.5 | C26: ft | D26: Smaller | E26: min. | F26: max. | G26: min. | H26: max.
B27: =IF(B26<B25,"Select larger riprap thickness","") ->  | D27: 100 | E27: =1.5*B13 -> 12.45 | F27: =2*B13 -> 16.6 | G27: =IF($B$11="Angular",0.0275*$H$23*E27^3,0.0233*$H$23*E27^3) -> 140.6327995 | H27: 333.351821
A28: Sideslope height: | D28: 85 | E28: =1.3*B13 -> 10.79 | F28: =1.8*B13 -> 14.94 | G28: 91.54674384 | H28: 243.0134775 | S28: =IF(AND(ABS(X16-1)<0.001,ABS(X23-1)<0.001),1,0) -> 1 | W28: Quantity formulas:
A29: Minimum= | B29: =ROUND(B17+B15,2) -> 0.95 | C29: ft | D29: 50 | E29: =1*B13 -> 8.3 | F29: =1.5*B13 -> 12.45 | G29: 41.66897763 | H29: 140.6327995 | W29: total riprap vertical height= | X29: =B26+B30 -> 2.5 | Y29: ft
A30: Provided= | B30: 1 | C30: ft | D30: 10 | E30: =0.8*B13 -> 6.64 | F30: =1.3*B13 -> 10.79 | G30: 21.33451654 | H30: 91.54674384 | W30: riprap sideslope horiz length= | X30: =B30*B9 -> 2 | Y30: ft
B31: =IF(B30<B29,"Select taller riprap sideslopes","") ->  | W31: trapezoidal flow area= | X31: =B30*(B8+X30) -> 30 | Y31: SF
E32: =X30 -> 2 | F32: ft | W32: excav. channel bottom width bottom= | X32: =B8+2*B26*TAN(0.5*ATAN(1/B9)) -> 28.70820393 | Y32: ft
F33: =TEXT(B8,"0.0")&" ft " -> 28.0 ft | W33: riprap x-sectional area= | X33: =X29*(X32+B9*X29)-X31 -> 54.27050983 | Y33: SF
B34: =TEXT(X29,"0.0")&" ft" -> 2.5 ft | G34: =TEXT(B30,"0.0")&" ft" -> 1.0 ft | W34: riprap sideslope length bottom= | X34: =((B30+B26)^2+(B9*(B30+B26))^2)^0.5 -> 5.590169944 | Y34: ft
F35: Riprap | H35: =TEXT(X34,"0.0")&" ft" -> 5.6 ft | W35: WW length= | X35: =H10 -> 100.4987562 | Y35: ft
A36: Quantities: | W36: riprap horiz top end width= | X36: =(B26^2+(B9*B26)^2)^0.5 -> 3.354101966 | Y36: ft
A37: Riprap volume= | B37: =X33*X35/27 -> 202.0043977 | C37: CY | F37: =TEXT(X32,"0.0")&" ft" -> 28.7 ft | W37: geotextile length= | X37: =H10+2*B26 -> 103.4987562 | Y37: ft
A38: Approx. weight= | B38: =B37*H22 -> 282.8061567 | C38: Tons | D38: Geotextile | F38: WW CROSS SECTION | W38: geotextile width= | X38: =X32+2*X34+2*X36 -> 46.59674775 | Y38: ft
A39: Geotextile area= | B39: =X37*X38/9 -> 535.8561595 | C39: SY*
F41: =TEXT(H10,"0.0")&" ft" -> 100.5 ft
A42: *Geotextile area includes actual covered surfaces only (no extra for laps or anchorage)
C43: =TEXT(B26,"0.0")&" ft" -> 1.5 ft | D43: 1
C44: Riprap | E44: =D7 -> 10
C45: Geotextile | F45: WW PROFILE

Sheet Instructions
A1: =Info!A1 -> Trapezoidal Riprap-Lined Waterway Design.xlsm | G1: =Info!H1 -> V1.02 | H1: =Info!I1 -> 2013-02-11

Sheet Info
A1: Trapezoidal Riprap-Lined Waterway Design.xlsm | H1: V1.02 | I1: 2013-02-11
A3: Trapezoidal riprap-lined waterway hydraulic design spreadsheet
A5: Developed by: | D5: Jean Sandstrom, PE
E6: Civil Engineer, NRCS, Des Moines, IA
D7: Neal Struthers
E8: Civil Engineer, NRCS, West Union, IA
A9: Reviewed by: | D9: Jon Fripp, PE
E10: Civil Engineer, Stream Mechanics, NRCS, NDCSMC, Ft. Worth, TX
A12: Program support: | D12: State Conservation Engineer
D13: USDA Natural Resources Conservation Service
D14: 210 Walnut St, Room 693
D15: Des Moines, Iowa 50309-2180
D16: (515) 284-4357
A18: References: | C18: 1 | D18: NRCS Conservation Practice Standard 468, Lined Waterway or Outlet
E19: September 2010
C20: 2 | D20: NRCS National Engineering Handbook Part 654, Technical Supplement
E21: 14C, Stone Sizing Critera, August 2007
C22: 3 | D22: Soil Conservation Service, Minnesota Technical Release 3,
E23: Loose Riprap Protection, July 1989
C24: 4 | D24: Abt, S.R. and T.L. Johnson (1991), Riprap Design for Overtopping Flow
E25: J. Hydr. Engng., ASCE 117(8):959-972
C26: 5 | D26: Lorenz, E.A. and M.N. Lobrecht (2000), An Excel Program to Design Rock
E27: Chutes for Grade Stabilization, ASAE Paper No. 002008
C28: 6 | D28: Robinson, K.M., C.E. Rice, and K.C. Kadavy (1998), Design of Rock Chutes
E29: Transactions of the ASAE, Vol. 41(3):621-626
A31: Updates: | C31: V1.02 | E31: Corrected error in equation for critical slope.
